bitfinex-derivatives/quotes_SOLF0:USTF0_20220101
["timestamp","ask_amount","ask_price","bid_price","bid_amount"]
[1641002803048,27.66479,172.79,172.72,27.66479]
[1641002803848,27.66479,172.79,172.73,1.21058199]
[1641002804047,27.66479,172.79,172.73,5.33958199]
[1641002804448,27.66479,172.79,172.74,1.21060309]
[1641002805049,27.66479,172.79,172.73,4.129]
[1641002805752,27.66479,172.79,172.74,1.21059249]
[1641002806550,27.66479,172.79,172.73,4.129]
[1641002807952,27.66479,172.79,172.74,1.2105822]
[1641002808354,27.66479,172.79,172.73,4.129]
[1641002809054,27.66479,172.79,172.74,1.21057979]
[1641002809656,27.66479,172.79,172.73,4.129]
[1641002810156,27.66479,172.79,172.74,1.21057853]
[1641002811156,27.66479,172.79,172.73,4.129]
[1641002811858,27.66479,172.79,172.74,1.21057689]
[1641002812556,27.66479,172.79,172.73,4.129]
[1641002813357,27.66479,172.79,172.74,1.21057659]
[1641002814158,27.66479,172.79,172.73,4.129]
[1641002814759,27.66479,172.79,172.74,1.21060059]
[1641002815261,27.66479,172.79,172.73,4.129]
[1641002816062,27.66479,172.79,172.74,1.21060404]
[1641002816664,27.66479,172.79,172.73,4.129]
[1641002817463,27.66479,172.79,172.74,1.21058218]
[1641002817966,27.66479,172.79,172.73,4.129]
[1641002818663,27.66479,172.79,172.74,1.21057859]
[1641002819364,27.66479,172.79,172.73,4.129]
[1641002819565,27.66479,172.79,172.72,36.28479]
[1641002820066,27.66479,172.79,172.73,1.21057657]
[1641002820568,27.66479,172.79,172.73,4.21057657]
[1641002820766,27.66479,172.79,172.73,3.0]
[1641002821267,27.66479,172.79,172.74,1.21057817]
[1641002821868,30.66479,172.79,172.74,1.21057817]
[1641002822069,3.0,172.78,172.72,27.66479]
[1641002822268,3.0,172.77,172.73,1.21057752]
[1641002822668,27.66479,172.74,172.73,1.21057752]
[1641002822870,27.66479,172.74,172.7,4.11081036]
[1641002823268,61.1794,172.77,172.7,4.11081036]
[1641002823472,61.1794,172.77,172.69,3.0]
[1641002823670,4.09937471,172.72,172.69,3.0]
[1641002824072,4.09937471,172.72,172.7,3.0]
[1641002824471,4.09897124,172.74,172.7,5.30612589]
[1641002824672,4.09897124,172.74,172.7,94.24521589]
[1641002825172,61.1794,172.77,172.7,88.93909]
[1641002825774,61.1794,172.77,172.7,91.93909]
[1641002825973,4.09884543,172.74,172.7,96.03793543]
[1641002826173,4.09884543,172.74,172.7,93.03793543]
[1641002826373,4.09884543,172.74,172.7,96.03793543]
[1641002826575,61.1794,172.77,172.7,91.93909]
[1641002826775,4.09841467,172.76,172.72,4.09841467]
[1641002827376,61.1794,172.77,172.71,1.20721031]
[1641002827978,4.0988049,172.74,172.7,93.0378949]
[1641002828579,61.1794,172.77,172.7,93.0378949]
[1641002828779,12.29551124,172.76,172.72,4.11025114]
[1641002829378,61.1794,172.77,172.7,88.93909]
[1641002830080,12.330816,172.76,172.72,4.110272]
[1641002830880,12.330816,172.76,172.7,88.93909]
[1641002831482,61.1794,172.77,172.72,4.11025252]
[1641002832183,12.33104129,172.76,172.7,61.2743]
[1641002832981,12.33104129,172.76,172.72,4.1103483]
[1641002833584,12.33104129,172.76,172.7,61.2743]
[1641002834383,12.33104129,172.76,172.72,4.11033308]
[1641002835186,61.1794,172.77,172.69,1.21052884]
[1641002835891,61.1794,172.77,172.71,4.10206511]
[1641002836691,27.66479,172.75,172.7,4.10218992]
[1641002837292,27.66479,172.75,172.7,1.20804366]
[1641002837892,27.66479,172.75,172.69,61.5956]
[1641002838092,27.66479,172.75,172.69,65.69800223]
[1641002838598,27.66479,172.75,172.69,61.5956]
[1641002838995,27.66479,172.75,172.69,65.69800521]
[1641002839796,12.30619534,172.76,172.71,3.0]
[1641002839997,12.30619534,172.76,172.7,3.0]
[1641002840397,62.2626,172.78,172.72,5.30996197]
[1641002841403,62.2626,172.78,172.71,3.0]
[1641002841602,62.2626,172.78,172.7,30.66479]
[1641002841903,62.2626,172.78,172.7,27.66479]
[1641002842105,62.2626,172.78,172.72,5.30982672]
[1641002842303,39.97098534,172.79,172.73,7.0]
[1641002842503,39.97098534,172.79,172.72,8.30982672]
[1641002842702,39.97098534,172.79,172.72,5.30982672]
[1641002842904,39.97098534,172.79,172.7,27.66479]
[1641002843105,39.97098534,172.79,172.7,34.66479]
[1641002843506,39.97098534,172.79,172.74,4.10117045]
[1641002843708,27.66479,172.79,172.74,4.10117045]
[1641002844406,4.1011562,172.77,172.71,4.20815909]
[1641002844607,4.1011562,172.77,172.71,1.20815909]
[1641002845107,27.66479,172.79,172.74,4.10119497]
[1641002845807,4.10117473,172.77,172.71,1.20815909]
[1641002846408,27.66479,172.79,172.74,4.10117118]
[1641002847010,4.10117606,172.77,172.73,1.20815909]
[1641002847810,27.66479,172.79,172.74,4.10118674]
[1641002848408,4.1011803,172.77,172.73,8.20815811]
[1641002849012,27.66479,172.79,172.73,7.0]
[1641002849211,27.66479,172.79,172.74,5.30931773]
[1641002849610,4.10115751,172.77,172.73,13.61]
[1641002850211,27.66479,172.79,172.73,13.61]
[1641002850410,27.66479,172.79,172.74,5.30932053]
[1641002850912,4.10114303,172.77,172.7,43.96030124]
[1641002851115,4.10114303,172.77,172.7,39.96030124]
[1641002851518,4.10164147,172.75,172.72,4.10164147]
[1641002851916,7.10164147,172.75,172.72,4.10164147]
[1641002852116,4.10164147,172.75,172.72,4.10164147]
[1641002852519,4.10214204,172.73,172.7,4.10214204]
[1641002853215,27.66479,172.72,172.7,4.10214204]
[1641002853916,27.66479,172.72,172.68,1.20806193]
[1641002854117,39.97098534,172.72,172.68,4.11126996]
[1641002854717,12.30619534,172.72,172.68,4.11126996]
[1641002855318,60.56124553,172.76,172.66,27.66479]
[1641002855518,60.56124553,172.76,172.69,4.11109611]
[1641002855720,12.33328834,172.73,172.69,4.11109611]
[1641002856221,12.33259518,172.74,172.7,4.11086506]
[1641002856923,12.33259518,172.74,172.66,12.29551124]
[1641002857122,12.33259518,172.74,172.69,4.11095832]
[1641002857722,12.33259518,172.74,172.7,4.11089079]
[1641002858324,12.33259518,172.74,172.69,7.0]
[1641002859125,96.58365553,172.78,172.71,4.11058327]
[1641002859126,12.33259518,172.76,172.71,4.11058327]
[1641002859728,12.33259518,172.76,172.72,4.11025983]
[1641002860629,12.33259518,172.76,172.7,60.0657]
[1641002861429,10.47289432,172.77,172.72,4.11035848]
[1641002861630,10.47289432,172.77,172.72,8.14735848]
[1641002862229,12.3305609,172.77,172.72,4.037]
[1641002862830,12.3305609,172.77,172.73,5.32050321]
[1641002863730,27.66479,172.79,172.72,4.037]
[1641002863932,27.66479,172.79,172.7,60.0657]
[1641002865032,12.33044987,172.77,172.72,4.11014996]
[1641002865630,12.33044987,172.77,172.73,4.11005709]
[1641002866432,12.33044987,172.77,172.71,1.21054741]
[1641002867133,12.33044987,172.77,172.72,4.11033556]
[1641002867334,12.33044987,172.76,172.72,4.11033556]
[1641002867937,10.47249878,172.78,172.71,1.21053028]
[1641002868537,12.33093624,172.76,172.72,4.11031208]
[1641002869340,12.33079745,172.77,172.73,4.11026582]
[1641002870040,12.33079745,172.77,172.7,68.5857]
[1641002870438,12.33079745,172.77,172.73,4.11021349]
[1641002871139,12.33079745,172.76,172.72,4.11041893]
[1641002871942,12.33079745,172.75,172.71,4.11068638]
[1641002872539,13.47249878,172.78,172.69,27.66479]
[1641002872740,4.11080327,172.73,172.72,4.11080327]
[1641002873339,12.3324098,172.77,172.69,39.96030124]
[1641002873539,13.47249878,172.78,172.7,1.21047562]
[1641002873540,12.3324098,172.76,172.7,1.21047562]
[1641002874340,12.3324098,172.76,172.72,4.11091147]
[1641002874841,12.3324098,172.76,172.7,1.2104774]
[1641002875542,3.0,172.74,172.73,4.11080471]
[1641002875741,3.0,172.74,172.69,12.29551124]
[1641002875942,3.0,172.7,172.69,12.29551124]
[1641002876341,59.3125,172.76,172.65,45.19196677]
[1641002876342,3.0,172.72,172.65,45.19196677]
[1641002876542,15.33241414,172.73,172.65,12.29551124]
[1641002876741,12.33241414,172.73,172.65,12.29551124]
[1641002877143,3.0,172.72,172.65,12.29551124]
[1641002877342,27.66479,172.71,172.64,12.29551124]
[1641002878142,39.99720414,172.71,172.63,12.29551124]
[1641002878844,27.66479,172.71,172.64,12.29551124]
[1641002880044,27.66479,172.71,172.62,1.21014945]
[1641002881744,27.66479,172.71,172.62,4.21014945]
[1641002881945,27.66479,172.71,172.62,1.21014945]
[1641002885049,27.66479,172.71,172.63,4.0]
[1641002885249,60.3279,172.72,172.63,7.0]
[1641002885450,60.3279,172.72,172.64,27.66479]
[1641002887050,60.3279,172.72,172.64,32.86979]
[1641002887750,60.3279,172.72,172.65,1.20231212]
[1641002889953,60.3279,172.72,172.66,12.29551124]
[1641002891255,63.3279,172.72,172.66,12.29551124]
[1641002891656,63.3279,172.72,172.66,19.46583138]
[1641002892157,60.3279,172.72,172.66,19.46583138]
[1641002892758,60.3279,172.72,172.65,12.29551124]
[1641002895263,60.3279,172.72,172.64,12.33488504]
[1641002895463,72.58319773,172.72,172.64,12.33488504]
[1641002895864,72.58319773,172.72,172.66,7.0]
[1641002896164,12.25529773,172.72,172.64,19.50520518]
[1641002896763,27.66479,172.73,172.66,12.33488504]
[1641002897163,39.92008773,172.73,172.65,12.33488504]
[1641002898565,27.66479,172.73,172.66,12.33488504]
[1641002899666,25.75492335,172.73,172.66,12.33488504]
[1641002899966,22.75492335,172.73,172.66,12.33488504]
[1641002900166,25.75492335,172.73,172.66,12.33488504]
[1641002900567,12.33344031,172.72,172.64,19.50520518]
[1641002902666,25.75492335,172.73,172.65,12.33488504]
[1641002902667,38.08836366,172.73,172.65,12.33488504]
[1641002904970,35.08836366,172.73,172.65,12.33488504]
[1641002907074,22.75492335,172.73,172.65,12.33488504]
[1641002907675,22.75492335,172.73,172.66,12.33488504]
[1641002909276,22.75492335,172.73,172.66,17.40488504]
[1641002909477,60.6707,172.75,172.66,17.40488504]
[1641002909777,60.6707,172.75,172.67,91.36649]
[1641002909977,12.33344031,172.74,172.67,92.56880212]
[1641002910578,12.33344031,172.74,172.68,1.20231212]
[1641002912078,12.33344031,172.73,172.68,1.20231212]
[1641002912779,3.0,172.72,172.68,1.20231212]
[1641002912980,12.33344031,172.73,172.68,1.20231212]
[1641002913681,12.33344031,172.71,172.67,1.20231212]
[1641002914387,12.33344031,172.72,172.65,1.20231212]
[1641002914984,12.33344031,172.71,172.65,1.20231212]
[1641002916082,39.99823031,172.73,172.65,19.50440277]
[1641002916683,39.99823031,172.73,172.65,13.53719716]
[1641002916885,12.33344031,172.72,172.65,1.20231212]
[1641002917384,39.99823031,172.73,172.65,19.50444529]
[1641002917987,39.99823031,172.73,172.65,13.53719716]
[1641002918186,12.33344031,172.72,172.65,1.20231212]
[1641002918885,39.99823031,172.73,172.65,19.50446484]
[1641002923294,3.0,172.71,172.65,19.50446484]
[1641002923693,12.33344031,172.72,172.65,1.20231212]
[1641002924194,3.0,172.71,172.65,1.20231212]
[1641002924395,3.0,172.7,172.65,1.20231212]
[1641002924994,75.11414031,172.71,172.65,1.20231212]
[1641002925195,3.0,172.7,172.65,1.20231212]
[1641002925497,15.33344031,172.7,172.61,19.49900193]
[1641002925797,27.66479,172.69,172.61,19.49900193]
[1641002925997,27.66479,172.69,172.61,1.20231212]
[1641002926700,39.99823031,172.69,172.61,1.20231212]
[1641002927799,3.0,172.68,172.61,1.20231212]
[1641002928002,42.99823031,172.69,172.61,1.20231212]
[1641002928200,39.99823031,172.69,172.61,1.20231212]
[1641002928401,39.99823031,172.69,172.61,7.52331212]
[1641002928801,39.99823031,172.69,172.62,1.20231212]
[1641002930803,27.66479,172.69,172.62,13.53719716]
[1641002931902,72.11414031,172.71,172.62,1.20231212]
[1641002932504,59.7807,172.71,172.64,12.33488504]
[1641002933607,59.7807,172.71,172.65,12.33488504]
[1641002934509,59.7807,172.71,172.66,12.33488504]
[1641002934705,27.66479,172.73,172.66,18.85388504]
[1641002935107,12.33344031,172.76,172.67,12.33488504]
[1641002935305,12.33344031,172.76,172.68,61.0218]
[1641002935907,27.66479,172.75,172.68,61.0218]
[1641002936307,4.10718037,172.72,172.71,4.10718037]
[1641002938310,4.10718037,172.72,172.69,1.20231212]
[1641002939711,4.10718037,172.72,172.71,4.11108127]
[1641002940319,12.33344031,172.73,172.69,5.31339339]
[1641002941014,12.33344031,172.73,172.69,4.11108127]
[1641002944817,12.33344031,172.73,172.68,5.31339339]
[1641002945619,4.10798342,172.69,172.68,5.31339339]
[1641002946221,4.10798342,172.7,172.67,1.20231212]
[1641002946622,4.10798342,172.7,172.68,7.0]
[1641002946821,4.10798342,172.7,172.68,11.10792046]
[1641002947521,4.10798342,172.73,172.69,1.20231212]
[1641002947721,4.10798342,172.73,172.69,65.67301212]
[1641002948023,4.10798342,172.73,172.69,93.33780212]
[1641002948624,4.10798342,172.73,172.72,4.10738256]
[1641002949324,4.10798342,172.73,172.72,8.14338256]
[1641002949625,4.10798342,172.73,172.72,9.34569468]
[1641002950325,4.10798342,172.73,172.72,5.23831212]
[1641002950527,4.10798342,172.74,172.72,5.23831212]
[1641002951127,4.10798342,172.75,172.73,5.30941805]
[1641002952027,4.10798342,172.75,172.74,4.10710593]
[1641002952427,4.10798342,172.76,172.74,4.10710593]
[1641002953829,4.10798342,172.75,172.73,1.20231212]
[1641002955130,4.10798342,172.74,172.73,1.20231212]
[1641002955330,4.10798342,172.74,172.7,12.33488504]
[1641002955732,16.04768558,172.74,172.66,32.89645553]
[1641002956034,3.0,172.71,172.66,32.89645553]
[1641002956231,3.0,172.7,172.66,32.89645553]
[1641002956431,3.0,172.67,172.65,18.29941797]
[1641002956830,3.0,172.69,172.65,18.29941797]
[1641002957533,12.33344031,172.66,172.61,32.89645553]
[1641002957731,12.33344031,172.66,172.58,12.33242221]
[1641002958033,3.0,172.63,172.58,12.33242221]
[1641002958231,27.66479,172.59,172.58,12.33242221]
[1641002958831,27.66479,172.59,172.54,32.89645553]
[1641002958832,27.66479,172.59,172.54,12.33242221]
[1641002959632,3.0,172.57,172.54,12.33242221]
[1641002959831,4.11412918,172.56,172.52,12.33242221]
[1641002960232,27.66479,172.53,172.52,12.33242221]
[1641002960852,4.11483825,172.54,172.5,12.33242221]
[1641002961632,27.66479,172.59,172.5,12.33242221]
[1641002961834,27.66479,172.59,172.51,12.33242221]
[1641002961835,4.11460012,172.55,172.51,12.33242221]
[1641002962433,27.66479,172.56,172.51,12.33242221]
[1641002962732,4.1149121,172.53,172.49,12.33242221]
[1641002963435,27.66479,172.56,172.49,12.33242221]
[1641002963634,4.1149273,172.54,172.5,12.33242221]
[1641002964036,27.66479,172.56,172.5,12.33242221]
[1641002964234,27.66479,172.53,172.5,17.07342221]
[1641002965435,31.77988605,172.53,172.5,4.741]
[1641002966139,27.66479,172.53,172.5,17.07342221]
[1641002967138,4.11532628,172.52,172.5,4.741]
[1641002967739,31.77996798,172.53,172.5,4.741]
[1641002968542,27.66479,172.53,172.5,4.741]
[1641002969041,27.66479,172.56,172.5,7.741]
[1641002969343,4.1150436,172.53,172.5,17.07342221]
[1641002970044,27.66479,172.56,172.5,17.07342221]
[1641002970243,27.66479,172.53,172.52,12.33242221]
[1641002970946,22.82612043,172.53,172.51,12.33242221]
[1641002971144,22.82612043,172.53,172.52,12.33242221]
[1641002972547,22.82612043,172.53,172.51,12.33242221]
[1641002973347,22.82612043,172.53,172.42,4.0]
[1641002973546,22.82612043,172.53,172.42,45.0191]
[1641002973746,22.82612043,172.53,172.42,41.0191]
[1641002974248,27.66479,172.49,172.42,41.0191]
[1641002974449,27.66479,172.49,172.4,9.83800642]
[1641002974650,27.66479,172.49,172.4,12.83800642]
[1641002974948,27.66479,172.49,172.4,8.79156169]
[1641002975552,27.66479,172.49,172.47,12.33242221]
[1641002976858,27.66479,172.49,172.46,12.33242221]
[1641002978158,31.7795651,172.49,172.46,12.33242221]
[1641002979058,27.66479,172.49,172.46,12.33242221]
[1641002980358,31.7795651,172.49,172.45,12.33242221]
[1641002982763,4.1147751,172.48,172.44,12.33242221]
[1641002985263,27.66479,172.49,172.46,12.33242221]
[1641002989668,27.66479,172.49,172.43,12.33242221]
[1641002993270,27.66479,172.49,172.41,12.33242221]
[1641002993872,27.66479,172.49,172.4,21.29837513]
[1641002994571,55.32958,172.49,172.4,21.29837513]
[1641002995578,55.32958,172.49,172.41,1.20240312]
[1641002998184,55.32958,172.49,172.44,4.0966729]
[1641003000583,27.66479,172.46,172.44,4.0966729]
[1641003000787,27.66479,172.46,172.42,12.33242221]
[1641003001986,27.66479,172.46,172.41,12.33242221]
[1641003003186,27.66479,172.46,172.44,12.33242221]
[1641003003589,4.1147751,172.48,172.44,12.33242221]
[1641003004589,27.66479,172.45,172.44,12.33242221]
[1641003007891,27.66479,172.45,172.42,12.33242221]
[1641003008493,27.66479,172.45,172.41,12.33242221]
[1641003008891,4.1147751,172.48,172.41,12.33242221]
[1641003009092,4.1147751,172.48,172.41,18.19242221]
[1641003009993,4.1147751,172.48,172.42,13.53482533]
[1641003010593,4.1147751,172.48,172.42,1.20240312]
[1641003011193,4.1147751,172.48,172.41,12.33242221]
[1641003014695,27.66479,172.46,172.41,12.33242221]
[1641003015698,27.66479,172.46,172.42,12.33242221]
[1641003016597,31.7795651,172.46,172.44,4.10864676]
[1641003017502,31.7795651,172.46,172.44,8.80064676]
[1641003018302,27.66479,172.46,172.44,8.80064676]
[1641003019403,31.7795651,172.46,172.45,1.20813367]
[1641003020207,27.66479,172.46,172.45,4.11736942]
[1641003021009,27.66479,172.46,172.43,4.11736942]
[1641003023412,4.10621588,172.45,172.42,4.11736942]
[1641003024815,4.10621588,172.45,172.41,4.11736942]
[1641003025515,4.10621588,172.45,172.42,4.11736942]
[1641003026317,4.10621588,172.46,172.42,4.11736942]
[1641003026515,4.10621588,172.46,172.42,9.84036942]
[1641003026716,31.77100588,172.46,172.42,9.84036942]
[1641003027116,34.77100588,172.46,172.42,9.84036942]
[1641003027415,31.77100588,172.46,172.42,9.84036942]
[1641003027618,4.10621588,172.43,172.42,5.723]
[1641003028417,4.10621588,172.45,172.42,11.04522995]
[1641003029220,4.10621588,172.46,172.42,9.84036942]
[1641003030422,4.10621588,172.45,172.42,9.84036942]
[1641003030620,7.10621588,172.45,172.42,9.84036942]
[1641003030820,31.77100588,172.45,172.42,9.84036942]
[1641003031425,4.10621588,172.45,172.42,9.84036942]
[1641003031725,40.00959351,172.49,172.42,5.723]
[1641003031924,40.00959351,172.49,172.39,3.0]
[1641003032324,40.00959351,172.49,172.4,3.0]
[1641003032528,4.10584485,172.47,172.43,4.10584485]
[1641003033226,30.66479,172.49,172.4,1.20489442]
[1641003033424,27.66479,172.49,172.4,1.20489442]
[1641003034028,30.66479,172.49,172.4,1.20489442]
[1641003034226,4.10597561,172.46,172.43,4.10597561]
[1641003035027,4.10587135,172.47,172.4,1.20489442]
[1641003036028,30.66479,172.49,172.43,4.10587252]
[1641003036326,27.66479,172.49,172.43,4.10587252]
[1641003036729,4.10587931,172.47,172.4,1.20489442]
[1641003037228,27.66479,172.49,172.43,4.10587119]
[1641003038029,4.10586055,172.48,172.45,4.10586055]
[1641003038630,27.66479,172.49,172.47,4.11688952]
[1641003039730,27.66479,172.49,172.48,4.11673206]
[1641003041031,27.66479,172.49,172.44,12.33242221]
[1641003041230,27.66479,172.49,172.43,7.15518238]
[1641003041231,27.66479,172.49,172.47,4.11678546]
[1641003041630,27.66479,172.49,172.43,19.48760459]
[1641003042431,27.66479,172.49,172.47,4.11689798]
[1641003043032,27.66479,172.49,172.43,19.48760459]
[1641003043232,27.66479,172.49,172.45,4.10843752]
[1641003043934,27.66479,172.49,172.43,1.20489442]
[1641003044136,27.66479,172.49,172.46,4.10822462]
[1641003044734,27.66479,172.49,172.43,1.20489442]
[1641003045235,27.66479,172.49,172.46,4.1083234]
[1641003045534,30.66479,172.49,172.46,4.1083234]
[1641003045736,27.66479,172.49,172.46,4.1083234]
[1641003046045,27.66479,172.49,172.43,1.20489442]
[1641003046238,27.66479,172.49,172.45,4.10845024]
[1641003046740,27.66479,172.49,172.43,1.20489442]
[1641003047542,27.66479,172.49,172.44,4.10855434]
[1641003049041,27.66479,172.49,172.45,4.10853979]
[1641003049443,27.66479,172.49,172.42,38.7176]
[1641003049444,27.66479,172.49,172.43,1.20565699]
[1641003050944,27.66479,172.49,172.46,4.10829441]
[1641003052345,27.66479,172.49,172.43,1.20565699]
[1641003052946,40.01553275,172.49,172.45,4.11691425]
[1641003054149,27.66479,172.49,172.42,51.05002221]
[1641003054348,27.66479,172.49,172.46,4.11668647]
[1641003055047,27.66479,172.49,172.48,4.11641003]
[1641003055946,27.66479,172.49,172.44,12.33242221]
[1641003056348,27.66479,172.49,172.46,4.1167292]
[1641003056849,27.66479,172.49,172.47,4.11659633]
[1641003057551,27.66479,172.49,172.46,4.11668447]
[1641003058454,12.349789,172.5,172.43,19.50688371]
[1641003058651,12.34980084,172.51,172.47,4.11660028]
[1641003059453,12.34980084,172.51,172.43,19.50688371]
[1641003060654,13.50007515,172.52,172.48,4.11674317]
[1641003060655,15.34980084,172.52,172.48,4.11674317]
[1641003061256,3.0,172.52,172.49,4.11659697]
[1641003061954,3.0,172.52,172.46,30.4342]
[1641003062158,3.0,172.52,172.47,1.20821281]
[1641003063157,3.0,172.52,172.46,30.4342]
[1641003063359,3.0,172.52,172.49,4.11659044]
[1641003063558,43.01459084,172.53,172.49,4.11659044]
[1641003064058,43.01459084,172.53,172.47,1.20819534]
[1641003064757,43.01459084,172.53,172.49,4.11658055]
[1641003065359,43.01459084,172.53,172.46,30.4342]
[1641003065560,3.0,172.52,172.47,1.20819584]
[1641003066561,3.0,172.52,172.49,4.11647339]
[1641003066861,3.0,172.52,172.47,1.20820656]
[1641003067661,3.0,172.52,172.46,30.4342]
[1641003067859,27.66479,172.53,172.48,4.10830768]
[1641003068660,39.98971305,172.53,172.46,34.54244514]
[1641003069459,39.98971305,172.53,172.46,30.4342]
[1641003069660,4.10775975,172.51,172.48,4.10775975]
[1641003070662,4.10775975,172.51,172.47,1.20586356]
[1641003070663,12.32492305,172.55,172.49,4.10766206]
[1641003071064,12.32492305,172.55,172.49,11.10766206]
[1641003071365,12.32492305,172.55,172.49,17.50466206]
[1641003071564,12.32492305,172.55,172.49,13.397]
[1641003071765,4.10751589,172.52,172.49,13.397]
[1641003071965,12.32492305,172.56,172.49,13.397]
[1641003072666,39.98971305,172.59,172.5,1.20588794]
[1641003073469,12.32492305,172.57,172.5,1.20588794]
[1641003074266,10.49351585,172.58,172.5,13.53831015]
[1641003075166,12.34479819,172.57,172.5,43.11351015]
[1641003075667,27.66479,172.59,172.5,43.11351015]
[1641003075867,12.34477938,172.58,172.51,1.20588794]
[1641003076271,12.34477938,172.58,172.5,41.90762221]
[1641003077472,12.34477938,172.58,172.51,1.20836053]
[1641003077873,12.34477938,172.58,172.51,28.87315053]
[1641003078074,12.34477938,172.58,172.51,27.66479]
[1641003078272,12.34477938,172.58,172.5,41.90762221]
[1641003078674,12.34477938,172.58,172.52,1.20860974]
[1641003078675,3.0,172.56,172.52,1.20860974]
[1641003079172,3.0,172.53,172.52,1.20860974]
[1641003079373,3.0,172.53,172.46,12.33242221]
[1641003079374,15.34784859,172.53,172.46,12.33242221]
[1641003079775,12.34784859,172.53,172.46,12.33242221]
[1641003079975,27.66479,172.49,172.46,12.33242221]
[1641003080475,27.66479,172.49,172.44,1.20851557]
[1641003080676,40.01522326,172.49,172.44,1.20851557]
[1641003080875,12.35043326,172.49,172.44,1.20851557]
[1641003081076,32.89645553,172.53,172.42,16.33242221]
[1641003081276,12.349433,172.51,172.43,13.54088497]
[1641003083576,40.014223,172.52,172.45,12.33242221]
[1641003083978,27.66479,172.52,172.45,12.33242221]
[1641003085678,27.66479,172.52,172.45,43.73332221]
[1641003086280,27.66479,172.52,172.46,1.20846276]
[1641003086480,22.8402795,172.52,172.46,5.39146276]
[1641003087082,39.99921978,172.55,172.46,5.39146276]
[1641003087482,3.0,172.53,172.47,1.20846276]
[1641003088085,27.66479,172.48,172.47,1.20846276]
[1641003088487,27.66479,172.48,172.41,45.22887774]
[1641003088685,27.66479,172.48,172.41,12.33242221]
[1641003089785,12.33442978,172.51,172.42,7.0]
[1641003089986,12.33442978,172.5,172.43,30.2789]
[1641003090185,12.33442978,172.5,172.44,27.66479]
[1641003091089,12.33442978,172.52,172.45,1.20846276]
[1641003092891,12.33442978,172.52,172.44,1.20846276]
[1641003093896,72.50571978,172.53,172.44,1.20846276]
[1641003094093,44.84092978,172.53,172.44,28.87325276]
[1641003094493,32.5065,172.53,172.45,1.20846276]
[1641003094793,12.33442978,172.54,172.45,1.20846276]
[1641003094994,12.33442978,172.54,172.45,7.10146276]
[1641003095594,12.33442978,172.54,172.45,25.39295207]
[1641003096297,39.99921978,172.55,172.46,1.20846276]
[1641003097794,12.33442978,172.54,172.46,13.54088497]
[1641003098394,27.66479,172.55,172.48,12.33242221]
[1641003101197,27.66479,172.55,172.48,19.49995207]
[1641003105101,39.99921978,172.55,172.48,19.49995207]
[1641003105302,39.99921978,172.55,172.48,49.66135207]
[1641003105701,39.99921978,172.55,172.48,43.70228497]
[1641003106002,12.33442978,172.54,172.49,1.20846276]
[1641003107304,12.33442978,172.53,172.49,1.20846276]
[1641003110109,12.33442978,172.53,172.47,1.20846276]
[1641003110610,43.55822978,172.54,172.47,1.20846276]
[1641003111217,3.0,172.53,172.47,1.20846276]
[1641003111416,31.2238,172.54,172.47,1.20846276]
[1641003112219,12.33442978,172.52,172.45,1.20846276]
[1641003113018,31.2238,172.54,172.45,1.20846276]
[1641003113019,43.55822978,172.54,172.45,1.20846276]
[1641003115221,43.55822978,172.54,172.45,19.49845308]
[1641003115821,12.33442978,172.54,172.46,34.0999]
[1641003116222,12.33442978,172.54,172.46,30.0999]
[1641003116424,12.33442978,172.54,172.46,35.6569]
[1641003116624,12.33442978,172.56,172.48,12.33242221]
[1641003116825,39.99921978,172.56,172.48,12.33242221]
[1641003117526,12.33442978,172.55,172.48,1.20846276]
[1641003118125,12.33442978,172.55,172.48,12.33242221]
[1641003119428,12.33442978,172.55,172.47,19.50672267]
[1641003120834,12.33442978,172.53,172.47,1.20846276]
[1641003121535,10.49779315,172.55,172.51,4.0]
[1641003121736,32.89645553,172.57,172.54,7.0]
[1641003122036,29.8195,172.67,172.54,7.0]
[1641003122241,29.8195,172.67,172.56,3.0]
[1641003122438,24.88274581,172.62,172.57,4.0]
[1641003122636,24.88274581,172.62,172.57,8.862]
[1641003122637,12.34445076,172.59,172.57,8.862]
[1641003122837,12.34445076,172.59,172.58,27.66479]
[1641003123238,12.34445076,172.59,172.58,30.66479]
[1641003123637,12.34445076,172.59,172.58,27.66479]
[1641003123839,10.49385025,172.66,172.58,28.87325276]
[1641003124841,42.53526114,172.69,172.59,1.20846276]
[1641003125140,42.53526114,172.69,172.6,4.0]
[1641003125541,42.53526114,172.69,172.62,4.0]
[1641003125742,14.87047114,172.69,172.62,7.0]